Cogmind - Beta 13 @@@ ROGUE MODE // 2024.04.15 @ 20:38:05 Player: Bross Result: Destroyed by G-47 Trooper with Particle Gun Performance ------------- Evolutions (2) 1000 Regions Visited (3) 600 Robots Destroyed (35) 175 Value Destroyed (814) 814 Prototype IDs (1) 20 Alien Tech Used (0) 0 Bonus (0) 0 TOTAL SCORE: 2609 Bonus ------- None Cogmind --------- Core Integrity 0/550 Matter 300/300 Energy 100/100 System Corruption 0% Temperature Cool (18) Movement Core (50) Location -8/Materials Parts ------- > --- POWER (1) -------- (None) > --- PROPULSION (4) --- (None) > --- UTILITY (4) ------ (None) > --- WEAPON (2) ------- (None) > --- INVENTORY (5) ---- Weapon Cycler Peak State ------------ > --- POWER ------------ Nuclear Core > --- PROPULSION ------- Aluminum Leg Aluminum Leg VSS Leg VSS Leg > --- UTILITY ---------- Heat Sink Weapon Cycler Hardened Medium Armor Plating Hardened Medium Armor Plating > --- WEAPON ----------- Pulse Rifle Pulse Rifle > --- INVENTORY -------- Improved Ion Engine Aluminum Leg Aluminum Leg Weapon Cycler Ion Cannon [Rating: 29] Favorites ----------- Power Ion Engine Engine Ion Engine Power Core Nuclear Core Propulsion Aluminum Leg Leg Aluminum Leg Utility Heat Sink Device Heat Sink Storage Small Matter Pod Protection Hardened Medium Armor Plating Weapon Pulse Rifle Energy Gun Pulse Rifle Energy Cannon Ion Cannon Ballistic Gun Assault Rifle Build | -11 -10 -9 -8 ------- Run | Yrd Mat Mat Mat Slots Evolved 4 | . . 2 2 Power . | . . . . Propulsion 2 | . . 2 . Utility 2 | . . . 2 Weapon . | . . . . Parts Attached 55 | 7 17 14 17 Power 13 | 2 3 3 5 Engine 11 | 2 3 3 3 Core 2 | . . . 2 Reactor . | . . . . Propulsion 20 | 2 7 6 5 Treads . | . . . . Leg 20 | 2 7 6 5 Wheel . | . . . . Hover . | . . . . Flight . | . . . . Utility 12 | 1 4 3 4 Device 7 | 1 2 1 3 Storage 1 | . 1 . . Processor . | . . . . Hackware . | . . . . Protection 4 | . 1 2 1 Artifact . | . . . . Weapon 10 | 2 3 2 3 Energy Gun 4 | . . 2 2 Energy Cannon 1 | . . . 1 Ballistic Gun 5 | 2 3 . . Ballistic Cannon . | . . . . Launcher . | . . . . Special Weapon . | . . . . Impact Weapon . | . . . . Slashing Weapon . | . . . . Piercing Weapon . | . . . . Special Melee Weapon . | . . . . Unidentified Prototypes . | . . . . Parts Lost 20 | . 1 4 15 Power 3 | . . 1 2 Propulsion 7 | . . 1 6 Utility 6 | . 1 1 4 Weapon 4 | . . 1 3 Highest Loss Streak 15 | . 1 3 15 To Critical Strikes . | . . . . Average Slot Usage (%) 91 | . 89 92 92 Engine 8 | . 13 11 3 Core 1 | . . . 5 Leg 33 | . 25 38 33 Device 16 | . 13 19 16 Storage 1 | . 7 . . Protection 6 | . 2 1 16 Energy Gun 10 | . . 12 15 Ballistic Gun 10 | . 26 9 . Naked Turns 12 | . 2 . 10 Heaviest Build 34 | 10 11 27 34 Greatest Support 44 | 20 20 40 44 Greatest Overweight (x) 10 | . 2 . 10 Average Overweight (x) . | . . . . Largest Inventory Capacity 5 | 5 5 5 5 Average Capacity 5 | 5 5 5 5 Most Carried 5 | 4 5 5 5 Average Carried 4 | 1 4 4 4 Final Capacity 5 | 5 5 5 5 Final Carried 5 | 4 5 5 1 Class Distribution -------------------- 76% | Scavenger-Mutant 23% | Mutant Dominant Class ---------------- Mutant | -10/Materials Scavenger-Mutant | -9/Materials Scavenger-Mutant | -8/Materials Resources | -11 -10 -9 -8 ----------- Run | Yrd Mat Mat Mat Matter Collected 779 | 288 203 188 100 Remotely . | . . . . Salvage Created 987 | 49 203 493 242 Parts 75 | 4 32 25 14 Haulers Intercepted . | . . . . Recyclers Shooed 3 | . . 1 2 Parts Field Recycled 18 | . . 18 . Retrieved Matter 144 | . . 144 . Parts Self-Destructed . | . . . . Prevented . | . . . . Kills | -11 -10 -9 -8 ------- Run | Yrd Mat Mat Mat Combat Hostiles Destroyed 28 | 1 8 13 6 Guns 27 | 1 8 13 5 Cannons 1 | . . . 1 Classes Destroyed 9 | 1 3 3 2 Builder 1 | . 1 . . Recycler 1 | . . . 1 Mechanic 1 | . . 1 . Operator 1 | . . 1 . Watcher 3 | . 1 2 . Swarmer 13 | . 6 4 3 Grunt 12 | 1 2 8 1 Sentry 1 | . . 1 . Specialist 2 | . . . 2 Best Kill Streak 4 | 1 4 4 4 Combat Bots Only 4 | 1 4 4 3 Max Kills in Single Turn 2 | 1 1 2 1 Gunslinging 1 | . . 1 . Exploded . | . . . . Melee . | . . . . Uniques/NPCs Destroyed . | . . . . Combat | -11 -10 -9 -8 -------- Run | Yrd Mat Mat Mat Hostile Shots Fired 329 | 4 76 66 183 Missed 92 | . 26 16 50 Damage Taken 2931 | 42 421 534 1934 Core 785 | 21 78 127 559 Absorbed by Shields . | . . . . Core Remaining (%) 73 | 91 60 68 . Volleys Fired 124 | 3 38 41 42 Largest 2 | 2 2 2 2 Hottest 126 | 40 40 126 126 Shots Fired 206 | 6 60 80 60 Gun 200 | 6 60 80 54 Cannon 6 | . . . 6 Launcher . | . . . . Special . | . . . . Kinetic 86 | 6 60 20 . Thermal 120 | . . 60 60 Explosive . | . . . . Electromagnetic . | . . . . Robot Hit Streak 11 | 1 5 8 11 Robot Miss Streak 4 | 2 3 2 4 Penetration Max . | . . . . Secondary Targets 3 | . 1 2 . Max Gunslinging Chain 1 | . 1 1 . Shots Hit Robots 125 | 2 31 50 42 Core Hits 49 | 2 12 20 15 Critical Kills 1 | . 1 . . Critical Parts Destroyed . | . . . . Critical Strikes 2 | . 1 1 . Burn 1 | . . 1 . Destroy 1 | . 1 . . Melee Attacks . | . . . . Impact . | . . . . Slashing . | . . . . Piercing . | . . . . Sneak Attacks . | . . . . Combat Hostiles . | . . . . Follow-up Attacks . | . . . . Damage Inflicted 2073 | 21 384 861 807 Guns 1905 | 21 384 861 639 Cannons 141 | . . . 141 Explosions . | . . . . Melee . | . . . . Ramming 27 | . . . 27 Kinetic 554 | 21 384 149 . Thermal 1492 | . . 712 780 Explosive . | . . . . Electromagnetic . | . . . . Impact . | . . . . Slashing . | . . . . Piercing . | . . . . Highest Corruption . | . . . . Average Corruption . | . . . . Corruption Purged . | . . . . Corruption Blocked . | . . . . Overload Shots . | . . . . Overflow Damage . | . . . . Projectiles . | . . . . Explosions . | . . . . Melee . | . . . . Knockbacks . | . . . . Impact . | . . . . Kinetic . | . . . . Secondary . | . . . . Self-Inflicted Damage 6 | . . . 6 Shots . | . . . . Rammed 2 | . . . 2 Targets Rammed 18 | . . . 18 Kicked 16 | . . . 16 Crushed . | . . . . Highest Temperature 389 | . . 389 368 Average Temperature 135 | . . 133 137 Received Heat Transfer 1257 | 24 30 249 954 Effects 6 | . . 3 3 Shutdowns 1 | . . 1 . Energy Bleed 2 | . . 2 . Interference 2 | . . . 2 Damage (minor) 1 | . . . 1 Siege Activations . | . . . . Robots Corrupted . | . . . . Combat Hostiles . | . . . . Parts Fried . | . . . . Impact Corruptions . | . . . . Robots Melted . | . . . . Combat Hostiles . | . . . . Parts Melted 3 | . . 2 1 Heat Transferred 3219 | . . 1628 1591 Parts Sabotaged . | . . . . Parts Stolen . | . . . . Parts Stripped . | . . . . Power Chain Reactions . | . . . . Alert | -11 -10 -9 -8 ------- Run | Yrd Mat Mat Mat Peak Influence 270 | 20 270 252 183 Initial 42 | . 13 37 42 Average 85 | 6 105 91 75 Maximum Alert Level 1 | . 1 1 . Low Security (%) 93 | 100 85 92 100 Level 1 6 | . 14 7 . Level 2 . | . . . . Level 3 . | . . . . Level 4 . | . . . . Level 5 . | . . . . High Security . | . . . . Max Security . | . . . . Squads Dispatched 4 | . . 2 2 Investigation 1 | . . 1 . Extermination . | . . . . Reinforcement 3 | . . 1 2 Assault . | . . . . Garrison . | . . . . Intercept . | . . . . Searches Triggered . | . . . . Construction Impeded . | . . . . Haulers Reinforced . | . . . . Active Scanning Responses . | . . . . Cargo Convoy Interrupts . | . . . . Stealth | -11 -10 -9 -8 --------- Run | Yrd Mat Mat Mat Distress Signals 2 | . . 1 1 Communications Jammed . | . . . . Distress Signals . | . . . . Times Spotted 51 | 1 16 19 15 Peak Tracking Total 8 | 1 3 4 8 Tactical Retreats 3 | . 2 1 . Traps | -11 -10 -9 -8 ------- Run | Yrd Mat Mat Mat Traps Triggered 6 | . 4 1 1 Indirectly . | . . . . Trap Hack Attempts . | . . . . Triggered . | . . . . Disarmed . | . . . . Reprogrammed . | . . . . Reused . | . . . . Traps Extracted . | . . . . Installed . | . . . . Triggered . | . . . . Machines | -11 -10 -9 -8 ---------- Run | Yrd Mat Mat Mat Machines Disabled . | . . . . Max in Single Turn . | . . . . Machines Repaired . | . . . . Machines Dismantled . | . . . . Machines Sabotaged . | . . . . Overloaded Fab Kills . | . . . . Hacking | -11 -10 -9 -8 --------- Run | Yrd Mat Mat Mat Machines Accessed 9 | . 3 5 1 Terminals 5 | . 1 3 1 Fabricators . | . . . . Repair Stations 1 | . . 1 . Recycling Units 2 | . 2 . . Scanalyzers 1 | . . 1 . Garrison Access . | . . . . Total Hacks 20 | . 8 10 2 Successful 15 | . 6 7 2 Failed 5 | . 2 3 . Catastrophic . | . . . . Database Lockouts . | . . . . Manual . | . . . . Terminals 12 | . 4 6 2 Fabricators . | . . . . Repair Stations 2 | . . 2 . Recycling Units 4 | . 4 . . Scanalyzers 2 | . . 2 . Garrison Access . | . . . . Terminal Hacks 9 | . 2 5 2 Record 3 | . . 2 1 Branch Access Points 1 | . . 1 . Alert Level 2 | . . 1 1 Locate Traps 1 | . 1 . . Investigation Status 1 | . 1 . . Zone Layout 1 | . . 1 . Fabricator Hacks . | . . . . Repair Station Hacks 1 | . . 1 . Scan Component 1 | . . 1 . Recycling Unit Hacks 4 | . 4 . . Recycle Component 1 | . 1 . . Process 1 | . 1 . . Report Inventory 2 | . 2 . . Scanalyzer 1 | . . 1 . Insert Component 1 | . . 1 . Garrison Access Hacks . | . . . . Unauthorized Hacks . | . . . . Terminals . | . . . . Fabricators . | . . . . Repair Stations . | . . . . Recycling Units . | . . . . Scanalyzers . | . . . . Garrison Access . | . . . . Data Cores Recovered . | . . . . Used . | . . . . Hacking Detections 5 | . 2 3 . Full Trace Events 1 | . 1 . . Feedback Events . | . . . . Feedback Blocked . | . . . . Robot Schematics Acquired . | . . . . Robots Built . | . . . . Authchips . | . . . . Time . | . . . . Total Robot Build Rating . | . . . . Part Schematics Acquired . | . . . . Parts Built . | . . . . Authchips . | . . . . Time . | . . . . Total Part Build Rating . | . . . . Parts Repaired . | . . . . Time . | . . . . Parts Recycled 1 | . 1 . . Recycled Matter 28 | . 28 . . Retrieved Matter . | . . . . Retrieved Components . | . . . . Parts Scanalyzed . | . . . . Part Schematics Acquired . | . . . . Parts Damaged . | . . . . Bothacking | -11 -10 -9 -8 ------------ Run | Yrd Mat Mat Mat Used RIF Installer . | . . . . Robots Hacked . | . . . . Non-combat . | . . . . Combat . | . . . . Robot Hacks Applied . | . . . . Relay Couplers Released . | . . . . Fabnet Peak Effective % . | . . . . Robots Rewired . | . . . . Allies Hacked . | . . . . Hacks Repelled . | . . . . Allies | -11 -10 -9 -8 -------- Run | Yrd Mat Mat Mat Total Allies . | . . . . Largest Group . | . . . . Highest-Rated Group . | . . . . Highest-Rated Ally . | . . . . Total Orders . | . . . . Ally Attacks . | . . . . Total Damage . | . . . . Kills . | . . . . Allies Corrupted . | . . . . Allies Melted . | . . . . Intel | -11 -10 -9 -8 ------- Run | Yrd Mat Mat Mat Robot Analysis Total . | . . . . Derelict Logs Recovered . | . . . . Drone Launches . | . . . . Drone Recoveries . | . . . . Exploration | -11 -10 -9 -8 ------------- Run | Yrd Mat Mat Mat Turns Passed 2052 | 108 484 816 644 Spaces Moved 1238 | 79 291 512 356 Core 35 | 18 8 . 9 Treads . | . . . . Legs 1203 | 61 283 512 347 Wheels . | . . . . Hover . | . . . . Flight . | . . . . Fastest Speed 50 | 50 50 120 100 Average Speed 118 | 104 118 120 120 Slowest Speed 550 | 120 150 120 550 Overloaded Moves . | . . . . Propulsion Burnouts . | . . . . Robots Hopped . | . . . . Cave-ins Triggered . | . . . . Exploration Rate (%) 23 | 9 42 27 16 Regions Visited 3 Branch Regions . Pre-discovered Areas . | . . . . Known Exits Taken . | . . . . Unknown Exits Taken 3 | 1 1 1 . Scrap Searched . | . . . . Spaces Dug . | . . . . Terrain Destroyed . | . . . . Melee . | . . . . Projectile . | . . . . AOE . | . . . . Terrain Rammed . | . . . . Walls Destroyed . | . . . . Machines Disabled . | . . . . Actions | -11 -10 -9 -8 --------- Run | Yrd Mat Mat Mat Total 1612 | 98 366 633 515 Wait 126 | . 8 46 72 Move 1235 | 78 290 511 356 Hop . | . . . . Pick Up 36 | 10 9 12 5 Fast Attach 16 | . 10 3 3 Attach 18 | 6 4 4 4 Detach . | . . . . Swap 21 | 1 3 7 10 Drop 18 | . 4 9 5 Fire 124 | 3 38 41 42 Melee . | . . . . Ram 2 | . . . 2 Kick 16 | . . . 16 Crush . | . . . . Escape Stasis . | . . . . Rewire . | . . . . Trap . | . . . . Miscellaneous . | . . . . Route ------- -11/Scrapyard -10/Materials -9/Materials (discovered 2 exits: *Mat / Min) -8/Materials History --------- Turn | Location | Event 2 | -11/Scrapyard | Met Revision 17 64 | -11/Scrapyard | Discovered new exit (range 8) 109 | -11/Scrapyard | Entered Materials 316 | -10/Materials | Build established: Mutant 586 | -10/Materials | Discovered new exit (range 7) 593 | -10/Materials | Entered another Materials area 593 | -9/Materials | Evolved 2 slots: Propulsion x2 689 | -9/Materials | Identified exit to Mines 759 | -9/Materials | Build established: Scavenger-Mutant 1311 | -9/Materials | Lost 3 parts (1p1n1u) 1378 | -9/Materials | Discovered new exit (range 5) 1409 | -9/Materials | Entered another Materials area 1409 | -8/Materials | Evolved 2 slots: Utility x2 2040 | -8/Materials | Core integrity fell below 50% 2049 | -8/Materials | Core integrity fell below 20% 2053 | -8/Materials | Destroyed by G-47 Trooper with Particle Gun Last Messages --------------- 02008_ Critical hit (Burn: +37). 02013_ Pulse Rifle destroyed. 02013_ VSS Leg destroyed. 02017_ Aluminum Leg destroyed. 02022_ Pulse Rifle destroyed. 02022_ Kicked G-47 Trooper. 02023_ Kicked G-47 Trooper out of the way. 02023_ Imp. Ion Engine destroyed. 02024_ Kicked Y-45 Defender out of the way. 02025_ Kicked G-47 Trooper out of the way. 02027_ Kicked G-47 Trooper. 02027_ Aluminum Leg destroyed. 02028_ Heat Sink destroyed. 02028_ Kicked G-47 Trooper. 02030_ Kicked G-47 Trooper out of the way. 02031_ Kicked G-47 Trooper. 02038_ Aluminum Leg destroyed. 02038_ Critical hit (Burn: +37). 02039_ Slammed into G-47 Trooper. 02043_ Weapon Cycler destroyed. Map ----- +----------------------------------------------------+ | ????????????????????# #??#!! #??????????? | | ????????????????????# #??#// #??????????? | | ????????????????????# #??#// #??????????? | | ????????????????????# #??#!! #??????????? | | ?????????????????#### #??#!! % #??????????? | | ?????????????????+ #??##### ^^#??????????? | | ?????????????????####### #??????# #??????????? | | ???????????????????????# #??????# #??????????? | | ???????????????????????# #??????# ##########?? | | ???????????????????????# #??????# # #?? | | ???????????????????????# #??????# # #?? | | ???????????????????????# #??????# # #?? | | ???????????????????????# #??##### # #?? | | ??????????????????????## ##? = # =+% """ #?? | | ??????????????????????#= # # =#*""""" #?? | | ??????????????????????# # # # """"" #?? | | ??????????????????????# + # # """"" #?? | | ??????????????????????# # ! # # """ #?? | | ??????????????????????# # # ##########?? | | ??????????????????????### ###? # ############ | | ????????????????????????# #??###### =# % | | ????????????????????????# #??# # * # """ """ | | ????????????????????????# #??# T # %+ """ """ | | ?????????????????# ?????#Y#??# # *[# """ """ | | ?????????????????# ##g#### #!*%# | | ?????????????????+ g@ggYY # [[############ | | ?????????????????# ####### ! # # | | ?????????????????# ???????# # # | | ??????????????????# ????????# !!# # | | ??????????????????#??????????# !!### ##+#### | | ?????????????????????????????### ##?# # | | ????????????????????????????????##??# !!==# "" | | ????????????????????????????????????#!!!!==# "" | | ????????????????????????????????????######## "" | | ???????????????????????????????????????????# "" | | ???????????????????????????????????????????# "T | | ???????????????????????????????????????????# "" | | ???????????????????????????????????????????# | | ???????????????????????????????????????????####### | | ?????????????????????????????????????????????????? | | ?????????????????????????????????????????????????? | | | | | | | | | | | | | | | | | | | +----------------------------------------------------+ Best States ------------- Heat Dissipation 41 Energy Generation 14 Energy Capacity 265 Matter Stores 300 Matter Capacity 350 Sight Range 16 Terrain Scan Density 10 Armor Coverage 450 Weapon Shielding 33 Weapon Cycling 30 Evasion (%) 55 Item Schematics ----------------- None Robot Schematics ------------------ None Fabricated ------------ Nothing Alien Tech Used ----------------- None Achievements -------------- Safety First Challenges ------------ None Game ------ Seed ShockControlRigger Manual? 0 Play Time 00:58:20 Cumulative 5.8 hours Start 2024.04.14 @ 22:41:49 End 2024.04.15 @ 20:38:05 Sessions 2 Manual Loads 0 Difficulty Rogue Special Mode None Game No. 3 Rogue 3 Adventurer 0 Explorer 0 Win Type - Total 0 Types 0/0/0/0/0/0/0/0/0 Lore% 7 Gallery% 6 Achievement% 7 Wizard Run 0 Options --------- Layout 1 ASCII 0 Keyboard 0 Movement Numpad Keybinds 0 Fullscreen 1 Font 48/Smallcaps Map View 50x35 Zoom Use 0% Tactical HUD 1 Map Filters NONE Filters NONE Steam 1 RUN: a66c83c9-8dce-4951-9172-0587da53b2a9